[Event "*** Titled Tuesday Blitz"]
[Site "Chess.com"]
[Date "2020.11.03"]
[Round "10"]
[White "XDPS"]
[Black "Sebastian"]
[Result "0-1"]
[WhiteElo "2670"]
[BlackElo "2878"]
[TimeControl "180+1"]
[EndTime "12:00:21 PST"]
[Termination "Sebastian won on time"]

1. e4 {[%clk 0:03:00.9]} 1... e5 {[%clk 0:02:59.8]} 2. Nf3 {[%clk 0:03:00.3]}
2... Nc6 {[%clk 0:03:00.2]} 3. Bb5 {[%clk 0:03:00.4]} 3... Nf6 {[%clk
0:03:00.3]} 4. O-O {[%clk 0:02:36.3]} 4... Nxe4 {[%clk 0:02:59.9]} 5. d4 {[%clk
0:02:35.6]} 5... Nd6 {[%clk 0:02:59.9]} 6. Bxc6 {[%clk 0:02:35.1]} 6... dxc6
{[%clk 0:03:00.1]} 7. dxe5 {[%clk 0:02:35.7]} 7... Nf5 {[%clk 0:03:00.7]} 8.
Qxd8+ {[%clk 0:02:36.3]} 8... Kxd8 {[%clk 0:03:01.5]} 9. Nc3 {[%clk 0:02:36.6]}
9... h6 {[%clk 0:03:00.9]} 10. h3 {[%clk 0:02:35.1]} 10... Bd7 {[%clk
0:03:00.5]} 11. Rd1 {[%clk 0:02:35.2]} 11... Kc8 {[%clk 0:03:00.2]} 12. Ne4
{[%clk 0:02:34.6]} 12... c5 {[%clk 0:02:50]} 13. g4 {[%clk 0:02:21.9]} 13... Bc6
{[%clk 0:02:49.7]} 14. Re1 {[%clk 0:02:14.4]} 14... Nd4 {[%clk 0:02:48.8]} 15.
Nxd4 {[%clk 0:02:13.5]} 15... cxd4 {[%clk 0:02:49.7]} 16. Ng3 {[%clk 0:02:07.7]}
16... Bf3 {[%clk 0:01:59.7]} 17. Bd2 {[%clk 0:02:00.3]} 17... Kd7 {[%clk
0:01:29.7]} 18. c3 {[%clk 0:01:52.2]} 18... dxc3 {[%clk 0:01:28.2]} 19. Bxc3
{[%clk 0:01:53.1]} 19... Re8 {[%clk 0:01:27.6]} 20. Re3 {[%clk 0:01:42.5]} 20...
Bc6 {[%clk 0:01:27.4]} 21. f4 {[%clk 0:01:33.2]} 21... Kc8 {[%clk 0:01:24.4]}
22. b4 {[%clk 0:01:27.9]} 22... Rd8 {[%clk 0:01:18.1]} 23. a3 {[%clk 0:01:13.3]}
23... Rg8 {[%clk 0:01:17.1]} 24. Rae1 {[%clk 0:01:05.4]} 24... g6 {[%clk
0:01:16.6]} 25. Ne2 {[%clk 0:00:37.2]} 25... Be7 {[%clk 0:01:03.9]} 26. Nd4
{[%clk 0:00:35.6]} 26... Bd5 {[%clk 0:01:04.5]} 27. Kh2 {[%clk 0:00:26.6]} 27...
Bh4 {[%clk 0:00:59.8]} 28. R1e2 {[%clk 0:00:23]} 28... Bc4 {[%clk 0:00:59.6]}
29. Rd2 {[%clk 0:00:23.3]} 29... Rge8 {[%clk 0:00:54.5]} 30. Kg2 {[%clk
0:00:18.7]} 30... b6 {[%clk 0:00:50.4]} 31. Nf3 {[%clk 0:00:14.9]} 31... Rxd2+
{[%clk 0:00:46.6]} 32. Bxd2 {[%clk 0:00:15.8]} 32... Be7 {[%clk 0:00:41.8]} 33.
Kg3 {[%clk 0:00:13.3]} 33... Rd8 {[%clk 0:00:41.7]} 34. Bc3 {[%clk 0:00:13.5]}
34... Rd3 {[%clk 0:00:41.6]} 35. Rxd3 {[%clk 0:00:11.5]} 35... Bxd3 {[%clk
0:00:42.3]} 36. Kf2 {[%clk 0:00:11.5]} 36... Kd7 {[%clk 0:00:41.3]} 37. Ke3
{[%clk 0:00:12]} 37... Bf1 {[%clk 0:00:41.1]} 38. h4 {[%clk 0:00:07.8]} 38...
Bh3 {[%clk 0:00:40.6]} 39. g5 {[%clk 0:00:04.5]} 39... h5 {[%clk 0:00:40.3]} 40.
Nd4 {[%clk 0:00:04.6]} 40... a6 {[%clk 0:00:36.2]} 41. f5 {[%clk 0:00:01.9]}
41... Bxf5 {[%clk 0:00:34.5]} 42. Nxf5 {[%clk 0:00:02.1]} 42... gxf5 {[%clk
0:00:35.2]} 43. Kf4 {[%clk 0:00:02.8]} 43... Ke6 {[%clk 0:00:35.6]} 44. Bd4
{[%clk 0:00:03.3]} 44... c5 {[%clk 0:00:34.6]} 45. Bc3 {[%clk 0:00:03.8]} 45...
cxb4 {[%clk 0:00:29.7]} 46. axb4 {[%clk 0:00:04.7]} 46... Bd8 {[%clk 0:00:29.4]}
47. Bd4 {[%clk 0:00:04.1]} 47... a5 {[%clk 0:00:27]} 48. bxa5 {[%clk 0:00:04.6]}
48... bxa5 {[%clk 0:00:27]} 49. Bc3 {[%clk 0:00:05.5]} 49... a4 {[%clk
0:00:27.1]} 50. Bb2 {[%clk 0:00:05.7]} 50... Bc7 {[%clk 0:00:27.1]} 51. Bc3
{[%clk 0:00:04.4]} 51... a3 {[%clk 0:00:27.5]} 52. Ba1 {[%clk 0:00:04.6]} 52...
a2 {[%clk 0:00:27.8]} 53. Bb2 {[%clk 0:00:05]} 53... Bb6 {[%clk 0:00:27.7]} 54.
Kf3 {[%clk 0:00:04.8]} 54... Bc5 {[%clk 0:00:25.3]} 55. Kf4 {[%clk 0:00:04.8]}
55... Bf2 {[%clk 0:00:24.8]} 56. g6 {[%clk 0:00:03.9]} 56... fxg6 {[%clk
0:00:24.9]} 57. Kg5 {[%clk 0:00:04.5]} 57... Bg3 {[%clk 0:00:23.8]} 58. Kxg6
{[%clk 0:00:03]} 58... Bxe5 {[%clk 0:00:23.9]} 59. Bxe5 {[%clk 0:00:01.5]} 59...
Kxe5 {[%clk 0:00:23.8]} 0-1

[Event "*** Titled Tuesday Blitz"]
[Site "Chess.com"]
[Date "2020.11.03"]
[Round "10"]
[White "yourstrulyme"]
[Black "levallem"]
[Result "0-1"]
[WhiteElo "2394"]
[BlackElo "2245"]
[TimeControl "180+1"]
[EndTime "12:00:22 PST"]
[Termination "levallem won on time"]

1. Nf3 {[%clk 0:03:00.9]} 1... c5 {[%clk 0:02:02.5]} 2. g3 {[%clk 0:03:01.8]}
2... Nc6 {[%clk 0:02:02.1]} 3. Bg2 {[%clk 0:03:01.5]} 3... b6 {[%clk 0:02:02.6]}
4. O-O {[%clk 0:03:00]} 4... Bb7 {[%clk 0:02:03.1]} 5. d3 {[%clk 0:02:58.7]}
5... Nf6 {[%clk 0:02:03.5]} 6. e4 {[%clk 0:02:58.9]} 6... d6 {[%clk 0:02:03.8]}
7. Re1 {[%clk 0:02:53.4]} 7... e6 {[%clk 0:02:04.3]} 8. Nbd2 {[%clk 0:02:43.4]}
8... Be7 {[%clk 0:02:04.4]} 9. Nc4 {[%clk 0:02:42.5]} 9... O-O {[%clk
0:02:02.2]} 10. a4 {[%clk 0:02:37.7]} 10... Re8 {[%clk 0:01:52.9]} 11. Bf4
{[%clk 0:01:42.4]} 11... e5 {[%clk 0:01:52]} 12. Bg5 {[%clk 0:01:40.3]} 12...
Ng4 {[%clk 0:01:35.4]} 13. Bd2 {[%clk 0:01:23.8]} 13... Bc8 {[%clk 0:01:32]} 14.
h3 {[%clk 0:01:19.4]} 14... Nf6 {[%clk 0:01:31.4]} 15. Bg5 {[%clk 0:01:19]}
15... Be6 {[%clk 0:01:03.8]} 16. c3 {[%clk 0:01:13.1]} 16... Qc7 {[%clk
0:01:00.5]} 17. Bxf6 {[%clk 0:01:03.4]} 17... Bxf6 {[%clk 0:01:01.4]} 18. Ne3
{[%clk 0:01:01.3]} 18... Rad8 {[%clk 0:01:00.1]} 19. h4 {[%clk 0:00:58.6]} 19...
Ne7 {[%clk 0:00:59.5]} 20. Ng5 {[%clk 0:00:52.2]} 20... h6 {[%clk 0:00:45.1]}
21. Nxe6 {[%clk 0:00:51.4]} 21... fxe6 {[%clk 0:00:46]} 22. Bh3 {[%clk
0:00:43.9]} 22... Nc6 {[%clk 0:00:41.4]} 23. Qb3 {[%clk 0:00:24.5]} 23... Qf7
{[%clk 0:00:37.7]} 24. Kg2 {[%clk 0:00:23.6]} 24... d5 {[%clk 0:00:35.7]} 25.
Rad1 {[%clk 0:00:11.5]} 25... Na5 {[%clk 0:00:34]} 26. Qa2 {[%clk 0:00:11]}
26... Re7 {[%clk 0:00:29.8]} 27. b4 {[%clk 0:00:10.7]} 27... Nb7 {[%clk
0:00:28]} 28. a5 {[%clk 0:00:09.1]} 28... d4 {[%clk 0:00:25.3]} 29. Nc4 {[%clk
0:00:06.6]} 29... dxc3 {[%clk 0:00:22.5]} 30. a6 {[%clk 0:00:06.7]} 30... Nd6
{[%clk 0:00:21]} 31. bxc5 {[%clk 0:00:07.2]} 31... Nxc4 {[%clk 0:00:20.2]} 32.
Qxc4 {[%clk 0:00:08.1]} 32... Rc8 {[%clk 0:00:18.8]} 33. c6 {[%clk 0:00:07.5]}
33... Qe8 {[%clk 0:00:17]} 34. Qxc3 {[%clk 0:00:04.7]} 34... Rxc6 {[%clk
0:00:17.2]} 35. Qb3 {[%clk 0:00:04.5]} 35... Qc8 {[%clk 0:00:16.8]} 36. Re2
{[%clk 0:00:03.5]} 36... Qxa6 {[%clk 0:00:16.7]} 37. Rc2 {[%clk 0:00:02.3]}
37... Qb7 {[%clk 0:00:16.3]} 38. Rdc1 {[%clk 0:00:02.3]} 38... Rxc2 {[%clk
0:00:15.7]} 39. Rxc2 {[%clk 0:00:03.2]} 39... Kh7 {[%clk 0:00:16.1]} 40. Bxe6
{[%clk 0:00:02.6]} 40... a5 {[%clk 0:00:15.4]} 41. h5 {[%clk 0:00:03]} 41... Re8
{[%clk 0:00:13.3]} 42. Bf5+ {[%clk 0:00:03.5]} 42... Kh8 {[%clk 0:00:12.9]} 43.
Qb5 {[%clk 0:00:03.7]} 43... Qe7 {[%clk 0:00:12.2]} 44. Rc6 {[%clk 0:00:03.8]}
44... Rb8 {[%clk 0:00:10.7]} 45. Qc4 {[%clk 0:00:02.5]} 45... Qd8 {[%clk
0:00:09.6]} 46. Qb5 {[%clk 0:00:01.6]} 46... Kg8 {[%clk 0:00:07]} 47. Be6+
{[%clk 0:00:01.4]} 47... Kh8 {[%clk 0:00:07]} 48. Bf7 {[%clk 0:00:01.4]} 48...
Qe7 {[%clk 0:00:06.8]} 49. Bd5 {[%clk 0:00:01.2]} 49... Qd8 {[%clk 0:00:06.6]}
0-1

[Event "*** Titled Tuesday Blitz"]
[Site "Chess.com"]
[Date "2020.11.03"]
[Round "10"]
[White "Mikhal867"]
[Black "geordie_derraugh"]
[Result "0-1"]
[WhiteElo "2343"]
[BlackElo "2431"]
[TimeControl "180+1"]
[EndTime "12:00:25 PST"]
[Termination "geordie_derraugh won on time"]

1. e4 {[%clk 0:03:00.9]} 1... c5 {[%clk 0:02:59.6]} 2. Nf3 {[%clk 0:03:00.1]}
2... e6 {[%clk 0:03:00]} 3. c3 {[%clk 0:02:58.5]} 3... d5 {[%clk 0:02:59.2]} 4.
e5 {[%clk 0:02:57.2]} 4... d4 {[%clk 0:02:58.9]} 5. cxd4 {[%clk 0:02:56]} 5...
cxd4 {[%clk 0:02:59.8]} 6. Bc4 {[%clk 0:02:44.3]} 6... Nc6 {[%clk 0:02:59.2]} 7.
O-O {[%clk 0:02:43.9]} 7... Nge7 {[%clk 0:02:59.4]} 8. d3 {[%clk 0:02:42.9]}
8... Ng6 {[%clk 0:02:59.4]} 9. Re1 {[%clk 0:02:40.2]} 9... Bb4 {[%clk
0:02:59.5]} 10. Bd2 {[%clk 0:02:39.9]} 10... Qa5 {[%clk 0:02:55.3]} 11. a3
{[%clk 0:02:31]} 11... Bxd2 {[%clk 0:02:54.1]} 12. Qxd2 {[%clk 0:02:23.3]} 12...
Qb6 {[%clk 0:02:54.3]} 13. b4 {[%clk 0:02:21]} 13... O-O {[%clk 0:02:48.5]} 14.
h4 {[%clk 0:02:19.1]} 14... Qc7 {[%clk 0:02:35.7]} 15. Qg5 {[%clk 0:02:12.5]}
15... h6 {[%clk 0:02:21.6]} 16. Qg3 {[%clk 0:02:10.9]} 16... Nge7 {[%clk
0:02:18.5]} 17. Nbd2 {[%clk 0:02:04.3]} 17... Nf5 {[%clk 0:02:17.9]} 18. Qf4
{[%clk 0:02:03.2]} 18... Qe7 {[%clk 0:02:14.2]} 19. Ne4 {[%clk 0:01:58.1]} 19...
Rd8 {[%clk 0:02:12.9]} 20. h5 {[%clk 0:01:37.1]} 20... b6 {[%clk 0:01:53.3]} 21.
g4 {[%clk 0:01:28.8]} 21... Nh4 {[%clk 0:01:50]} 22. Nfd2 {[%clk 0:01:14.6]}
22... Bb7 {[%clk 0:01:47.2]} 23. Nd6 {[%clk 0:01:14.3]} 23... Nxe5 {[%clk
0:01:38.7]} 24. Nxb7 {[%clk 0:00:59.6]} 24... Qxb7 {[%clk 0:01:39.6]} 25. Re4
{[%clk 0:00:54.8]} 25... Nxc4 {[%clk 0:01:25.8]} 26. Nxc4 {[%clk 0:00:53.7]}
26... f5 {[%clk 0:01:22.1]} 27. gxf5 {[%clk 0:00:45.8]} 27... exf5 {[%clk
0:01:21.5]} 28. Qxh4 {[%clk 0:00:41.6]} 28... fxe4 {[%clk 0:01:21.5]} 29. dxe4
{[%clk 0:00:41.2]} 29... d3 {[%clk 0:01:04.7]} 30. Ne5 {[%clk 0:00:38.8]} 30...
d2 {[%clk 0:00:58.3]} 31. Rd1 {[%clk 0:00:37.4]} 31... Re8 {[%clk 0:00:46.6]}
32. Qf4 {[%clk 0:00:27.2]} 32... Rad8 {[%clk 0:00:38.3]} 33. f3 {[%clk
0:00:22.2]} 33... Qc7 {[%clk 0:00:22.8]} 34. Ng6 {[%clk 0:00:21.7]} 34... Qxf4
{[%clk 0:00:22.8]} 35. Nxf4 {[%clk 0:00:21.3]} 35... Re7 {[%clk 0:00:15.1]} 36.
Kf2 {[%clk 0:00:20.3]} 36... Rc7 {[%clk 0:00:15.7]} 37. Nd5 {[%clk 0:00:17.6]}
37... Rc2 {[%clk 0:00:15.9]} 38. Ke2 {[%clk 0:00:17]} 38... Ra2 {[%clk
0:00:16.3]} 39. Rxd2 {[%clk 0:00:17]} 39... Rxa3 {[%clk 0:00:16.8]} 40. Rd3
{[%clk 0:00:17]} 40... Ra2+ {[%clk 0:00:15]} 41. Ke3 {[%clk 0:00:17.1]} 41...
Kf7 {[%clk 0:00:15.6]} 42. f4 {[%clk 0:00:16.9]} 42... Re8 {[%clk 0:00:15.2]}
43. Kd4 {[%clk 0:00:15.5]} 43... Rh2 {[%clk 0:00:15.1]} 44. Ra3 {[%clk
0:00:15.1]} 44... a5 {[%clk 0:00:13]} 45. bxa5 {[%clk 0:00:14.7]} 45... bxa5
{[%clk 0:00:13.9]} 46. Rxa5 {[%clk 0:00:14.7]} 46... Rxh5 {[%clk 0:00:14.4]} 47.
Ra7+ {[%clk 0:00:14.6]} 47... Kf8 {[%clk 0:00:14.6]} 48. f5 {[%clk 0:00:14.8]}
48... Rh4 {[%clk 0:00:14.7]} 49. Ra6 {[%clk 0:00:13.3]} 49... Rhxe4+ {[%clk
0:00:13.7]} 50. Kc5 {[%clk 0:00:12.8]} 50... R4e5 {[%clk 0:00:14]} 51. Kd4
{[%clk 0:00:11.8]} 51... Rxf5 {[%clk 0:00:13.7]} 52. Nc7 {[%clk 0:00:10.4]}
52... Rc8 {[%clk 0:00:10.4]} 53. Ne6+ {[%clk 0:00:09.7]} 53... Kf7 {[%clk
0:00:08.9]} 54. Ke4 {[%clk 0:00:04.9]} 54... Rf6 {[%clk 0:00:09]} 0-1

[Event "*** Titled Tuesday Blitz"]
[Site "Chess.com"]
[Date "2020.11.03"]
[Round "10"]
[White "doons21"]
[Black "MattyDPerrine"]
[Result "1-0"]
[WhiteElo "2594"]
[BlackElo "2410"]
[TimeControl "180+1"]
[EndTime "12:00:33 PST"]
[Termination "doons21 won by checkmate"]

1. e4 {[%clk 0:03:00.9]} 1... c5 {[%clk 0:02:54.4]} 2. c3 {[%clk 0:03:00.9]}
2... Nf6 {[%clk 0:02:54.3]} 3. e5 {[%clk 0:03:01.1]} 3... Nd5 {[%clk 0:02:54.9]}
4. d4 {[%clk 0:03:02]} 4... cxd4 {[%clk 0:02:55.8]} 5. Nf3 {[%clk 0:03:02.8]}
5... e6 {[%clk 0:02:55.8]} 6. Bc4 {[%clk 0:03:02.7]} 6... Nb6 {[%clk 0:02:42.5]}
7. Bb3 {[%clk 0:03:02.8]} 7... d5 {[%clk 0:02:33.2]} 8. exd6 {[%clk 0:03:02.8]}
8... Bxd6 {[%clk 0:02:23.2]} 9. O-O {[%clk 0:02:56.8]} 9... O-O {[%clk
0:02:17.3]} 10. cxd4 {[%clk 0:02:54.9]} 10... N8d7 {[%clk 0:02:11.9]} 11. Nc3
{[%clk 0:02:50.6]} 11... Nf6 {[%clk 0:02:11.8]} 12. Bg5 {[%clk 0:02:50.8]} 12...
Be7 {[%clk 0:02:11]} 13. Re1 {[%clk 0:02:25.7]} 13... Bd7 {[%clk 0:02:02.2]} 14.
Bc2 {[%clk 0:02:17.4]} 14... Nbd5 {[%clk 0:01:38.3]} 15. Ne5 {[%clk 0:02:05.9]}
15... Rc8 {[%clk 0:01:22]} 16. Qf3 {[%clk 0:02:01.5]} 16... Bc6 {[%clk
0:00:59.1]} 17. Qh3 {[%clk 0:01:56.3]} 17... Nb4 {[%clk 0:00:20.4]} 18. Bb1
{[%clk 0:01:36.1]} 18... g6 {[%clk 0:00:16.6]} 19. Bh6 {[%clk 0:01:32.9]} 19...
Qxd4 {[%clk 0:00:16.2]} 20. Bxf8 {[%clk 0:01:26.4]} 20... Rxf8 {[%clk
0:00:17.1]} 21. Nxc6 {[%clk 0:01:21.5]} 21... bxc6 {[%clk 0:00:17.1]} 22. Qe3
{[%clk 0:01:08]} 22... Bc5 {[%clk 0:00:13.4]} 23. Qxd4 {[%clk 0:00:52.9]} 23...
Bxd4 {[%clk 0:00:13.7]} 24. Be4 {[%clk 0:00:32.6]} 24... Nbd5 {[%clk 0:00:07.8]}
25. Rac1 {[%clk 0:00:29.1]} 25... Rb8 {[%clk 0:00:06.7]} 26. Bxd5 {[%clk
0:00:27.6]} 26... cxd5 {[%clk 0:00:05.6]} 27. b3 {[%clk 0:00:26.9]} 27... a6
{[%clk 0:00:02.3]} 28. h3 {[%clk 0:00:25.1]} 28... Kf8 {[%clk 0:00:02.3]} 29.
Kf1 {[%clk 0:00:22.4]} 29... h5 {[%clk 0:00:02.5]} 30. f3 {[%clk 0:00:18.8]}
30... e5 {[%clk 0:00:02.2]} 31. Na4 {[%clk 0:00:17.6]} 31... Rd8 {[%clk
0:00:01.9]} 32. Rc6 {[%clk 0:00:17.5]} 32... Kg7 {[%clk 0:00:02.4]} 33. Rxa6
{[%clk 0:00:17.5]} 33... e4 {[%clk 0:00:03]} 34. Rd1 {[%clk 0:00:14.5]} 34...
Be5 {[%clk 0:00:02.5]} 35. Nc5 {[%clk 0:00:10.4]} 35... exf3 {[%clk 0:00:02.9]}
36. gxf3 {[%clk 0:00:10.1]} 36... Kh6 {[%clk 0:00:03]} 37. Nd3 {[%clk
0:00:09.3]} 37... Bc3 {[%clk 0:00:02.1]} 38. Rc1 {[%clk 0:00:09.7]} 38... Bd4
{[%clk 0:00:02.3]} 39. Rc7 {[%clk 0:00:06.8]} 39... Kg5 {[%clk 0:00:02]} 40.
Rxf7 {[%clk 0:00:06.3]} 40... Re8 {[%clk 0:00:02]} 41. f4+ {[%clk 0:00:06.1]}
41... Kh4 {[%clk 0:00:02.6]} 42. Rfxf6 {[%clk 0:00:05]} 42... Bxf6 {[%clk
0:00:03]} 43. Rxf6 {[%clk 0:00:05.9]} 43... Re3 {[%clk 0:00:03.6]} 44. Nf2
{[%clk 0:00:05.1]} 44... Rf3 {[%clk 0:00:03.6]} 45. Rxg6 {[%clk 0:00:04.6]}
45... d4 {[%clk 0:00:03.9]} 46. Ke2 {[%clk 0:00:04.4]} 46... Re3+ {[%clk
0:00:04.3]} 47. Kd2 {[%clk 0:00:04.9]} 47... Re8 {[%clk 0:00:04.4]} 48. Nd3
{[%clk 0:00:05]} 48... Rf8 {[%clk 0:00:04.2]} 49. Rd6 {[%clk 0:00:05.1]} 49...
Rf5 {[%clk 0:00:04.4]} 50. Rxd4 {[%clk 0:00:05.3]} 50... Kg3 {[%clk 0:00:05.3]}
51. Rd6 {[%clk 0:00:05.1]} 51... h4 {[%clk 0:00:05.5]} 52. Rh6 {[%clk
0:00:04.8]} 52... Kxh3 {[%clk 0:00:05.9]} 53. Ke3 {[%clk 0:00:05.2]} 53... Kg3
{[%clk 0:00:05.7]} 54. b4 {[%clk 0:00:05]} 54... Rf8 {[%clk 0:00:05.5]} 55. a4
{[%clk 0:00:05.1]} 55... Re8+ {[%clk 0:00:06]} 56. Ne5 {[%clk 0:00:05.4]} 56...
h3 {[%clk 0:00:06.9]} 57. Rg6+ {[%clk 0:00:05.7]} 57... Kh2 {[%clk 0:00:07.3]}
58. Kf2 {[%clk 0:00:05.2]} 58... Rc8 {[%clk 0:00:07.7]} 59. Nf3+ {[%clk
0:00:05.6]} 59... Kh1 {[%clk 0:00:07.8]} 60. Rg1# {[%clk 0:00:06.5]} 1-0

[Event "*** Titled Tuesday Blitz"]
[Site "Chess.com"]
[Date "2020.11.03"]
[Round "10"]
[White "chessmachine14"]
[Black "CarlssonLudvig"]
[Result "0-1"]
[WhiteElo "2346"]
[BlackElo "2432"]
[TimeControl "180+1"]
[EndTime "12:00:34 PST"]
[Termination "CarlssonLudvig won on time"]

1. e4 {[%clk 0:03:00.9]} 1... e5 {[%clk 0:03:00.1]} 2. Nf3 {[%clk 0:03:00.2]}
2... Nc6 {[%clk 0:02:59.4]} 3. Bb5 {[%clk 0:02:59.8]} 3... Nf6 {[%clk
0:02:59.1]} 4. d3 {[%clk 0:02:52.8]} 4... Bc5 {[%clk 0:02:58.4]} 5. O-O {[%clk
0:02:50.5]} 5... Nd4 {[%clk 0:02:56.7]} 6. Nxd4 {[%clk 0:02:49.8]} 6... Bxd4
{[%clk 0:02:57.6]} 7. c3 {[%clk 0:02:49.3]} 7... Bb6 {[%clk 0:02:55.7]} 8. Kh1
{[%clk 0:02:47.8]} 8... c6 {[%clk 0:02:48.9]} 9. Ba4 {[%clk 0:02:46.6]} 9... d5
{[%clk 0:02:40.8]} 10. exd5 {[%clk 0:02:45.9]} 10... Qxd5 {[%clk 0:02:36.1]} 11.
Be3 {[%clk 0:02:44.8]} 11... Bh3 {[%clk 0:02:32.5]} 12. Rg1 {[%clk 0:02:36.5]}
12... Bxe3 {[%clk 0:02:18.8]} 13. fxe3 {[%clk 0:02:36]} 13... Ng4 {[%clk
0:02:18.5]} 14. Qe2 {[%clk 0:02:30.6]} 14... Qxd3 {[%clk 0:02:13.2]} 15. Re1
{[%clk 0:02:14.6]} 15... Qe4 {[%clk 0:01:08.6]} 16. Bc2 {[%clk 0:02:12.7]} 16...
Bxg2+ {[%clk 0:01:04.7]} 17. Qxg2 {[%clk 0:02:12]} 17... Nf2+ {[%clk 0:01:03.4]}
18. Kg1 {[%clk 0:02:11.1]} 18... Nh3+ {[%clk 0:00:58.8]} 19. Qxh3 {[%clk
0:01:58.7]} 19... Qxc2 {[%clk 0:00:58.1]} 20. Qg2 {[%clk 0:01:58.7]} 20... Qa4
{[%clk 0:00:53]} 21. Nd2 {[%clk 0:01:40.5]} 21... O-O-O {[%clk 0:00:52]} 22. Nf3
{[%clk 0:01:39.8]} 22... Rd6 {[%clk 0:00:48.1]} 23. Kh1 {[%clk 0:01:39.8]} 23...
Rg6 {[%clk 0:00:44.9]} 24. Qh3+ {[%clk 0:01:39.2]} 24... Kb8 {[%clk 0:00:44.6]}
25. e4 {[%clk 0:01:34.1]} 25... Rh6 {[%clk 0:00:39.7]} 26. Qg3 {[%clk
0:01:33.2]} 26... Rg6 {[%clk 0:00:24.8]} 27. Qxe5+ {[%clk 0:01:32.6]} 27... Ka8
{[%clk 0:00:25.2]} 28. Rg1 {[%clk 0:01:30.4]} 28... Qc2 {[%clk 0:00:23.3]} 29.
Nh4 {[%clk 0:00:47.5]} 29... Re6 {[%clk 0:00:18.1]} 30. Qxg7 {[%clk 0:00:46.8]}
30... Qxe4+ {[%clk 0:00:17.8]} 31. Ng2 {[%clk 0:00:46.3]} 31... Rd8 {[%clk
0:00:16.3]} 32. Rae1 {[%clk 0:00:45.9]} 32... Qf3 {[%clk 0:00:15]} 33. Rxe6
{[%clk 0:00:45.6]} 33... fxe6 {[%clk 0:00:15.9]} 34. Qe7 {[%clk 0:00:43.6]}
34... Rg8 {[%clk 0:00:14.9]} 35. Qxh7 {[%clk 0:00:39.8]} 35... Rf8 {[%clk
0:00:12.5]} 36. Qh6 {[%clk 0:00:35]} 36... e5 {[%clk 0:00:11.3]} 37. Qe3 {[%clk
0:00:34.8]} 37... Qf5 {[%clk 0:00:10.2]} 38. Nh4 {[%clk 0:00:24.3]} 38... Qh5
{[%clk 0:00:09.7]} 39. Ng6 {[%clk 0:00:20.7]} 39... Re8 {[%clk 0:00:04.6]} 40.
Nf4 {[%clk 0:00:15.9]} 40... Qf7 {[%clk 0:00:02.6]} 41. Nh3 {[%clk 0:00:11.5]}
41... Qd5+ {[%clk 0:00:01.8]} 42. Rg2 {[%clk 0:00:10]} 42... Rg8 {[%clk
0:00:02.3]} 43. Qg1 {[%clk 0:00:08.2]} 43... a6 {[%clk 0:00:01.7]} 44. Nf2
{[%clk 0:00:07.6]} 44... Rh8 {[%clk 0:00:01.3]} 45. Qf1 {[%clk 0:00:05.7]} 45...
e4 {[%clk 0:00:01.7]} 46. Kg1 {[%clk 0:00:06.2]} 46... e3 {[%clk 0:00:02.1]} 47.
Nd3 {[%clk 0:00:05.7]} 47... Qc5 {[%clk 0:00:02.5]} 48. Qe2 {[%clk 0:00:04]}
48... Qb6 {[%clk 0:00:01.1]} 49. Ne1 {[%clk 0:00:03.6]} 49... Rd8 {[%clk
0:00:01.4]} 50. Rg3 {[%clk 0:00:03.2]} 50... Rd2 {[%clk 0:00:01.1]} 51. Qxe3
{[%clk 0:00:01.4]} 51... Qd8 {[%clk 0:00:01.4]} 0-1